[Event "December 5 Late 2023"]
[Site "https://www.chess.com"]
[Date "2023.12.05"]
[Round "4"]
[White "Silvestre, Christian"]
[Black "Bold, Andre"]
[Result "0-1"]
[Board "133"]
[TimeControl "180+1"]
[WhiteFideId "30956269"]
[BlackFideId "16208471"]
[WhiteElo "2315"]
[BlackElo "2490"]
[WhiteTeam "USA"]
[BlackTeam "GER"]
[WhiteClock "0:00:21"]
[BlackClock "0:00:40"]

1. e4 {[%clk 0:03:00]}  c6 {[%clk 0:03:00]} 2. Nc3 {[%clk 0:02:55]}  d5 {[%clk 0:03:01]} 3. Qe2 {[%clk 0:02:54]}  d4 {[%clk 0:02:54]} 4. Nd1 {[%clk 0:02:52]}  e5 {[%clk 0:02:55]} 5. d3 {[%clk 0:02:49]}  c5 {[%clk 0:02:55]} 6. g3 {[%clk 0:02:48]}  Nc6 {[%clk 0:02:55]} 7. Bh3 {[%clk 0:02:47]}  Bd6 {[%clk 0:02:51]} 8. Bxc8 {[%clk 0:02:41]}  Qxc8 {[%clk 0:02:51]} 9. Nf3 {[%clk 0:02:40]}  Qe6 {[%clk 0:02:49]} 10. Bd2 {[%clk 0:02:33]}  O-O-O {[%clk 0:02:46]} 11. O-O {[%clk 0:02:29]}  h5 {[%clk 0:02:45]} 12. Ng5 {[%clk 0:02:21]}  Qg6 {[%clk 0:02:43]} 13. f4 {[%clk 0:02:13]}  exf4 {[%clk 0:02:31]} 14. gxf4 {[%clk 0:02:14]}  h4 {[%clk 0:02:18]} 15. Kh1 {[%clk 0:02:04]}  f6 {[%clk 0:01:57]} 16. f5 {[%clk 0:02:01]}  Qe8 {[%clk 0:01:56]} 17. Ne6 {[%clk 0:02:01]}  Rd7 {[%clk 0:01:55]} 18. c3 {[%clk 0:01:48]}  Nd8 {[%clk 0:01:39]} 19. cxd4 {[%clk 0:01:44]}  Nxe6 {[%clk 0:01:37]} 20. fxe6 {[%clk 0:01:44]}  Qxe6 {[%clk 0:01:37]} 21. d5 {[%clk 0:01:38]}  Qe5 {[%clk 0:01:24]} 22. Bf4 {[%clk 0:01:33]}  Qd4 {[%clk 0:01:23]} 23. Be3 {[%clk 0:01:25]}  Qe5 {[%clk 0:01:15]} 24. Bf4 {[%clk 0:01:19]}  Qe7 {[%clk 0:01:15]} 25. Nc3 {[%clk 0:01:17]}  Bxf4 {[%clk 0:01:13]} 26. Rxf4 {[%clk 0:01:16]}  a6 {[%clk 0:01:12]} 27. Rc1 {[%clk 0:01:10]}  Kb8 {[%clk 0:01:12]} 28. Na4 {[%clk 0:01:10]}  Rc7 {[%clk 0:01:07]} 29. Nb6 {[%clk 0:01:00]}  Qd6 {[%clk 0:01:04]} 30. e5 {[%clk 0:00:54]}  Qxb6 {[%clk 0:01:02]} 31. d6 {[%clk 0:00:50]}  Rc8 {[%clk 0:00:56]} 32. b4 {[%clk 0:00:45]}  fxe5 {[%clk 0:00:52]} 33. Qxe5 {[%clk 0:00:39]}  Ka7 {[%clk 0:00:44]} 34. bxc5 {[%clk 0:00:38]}  Qc6+ {[%clk 0:00:45]} 35. Kg1 {[%clk 0:00:36]}  Nf6 {[%clk 0:00:45]} 36. d4 {[%clk 0:00:33]}  h3 {[%clk 0:00:44]} 37. Rf2 {[%clk 0:00:31]}  Rh5 {[%clk 0:00:43]} 38. Qe3 {[%clk 0:00:27]}  Re8 {[%clk 0:00:42]} 39. Qb3 {[%clk 0:00:22]}  Rg5+ {[%clk 0:00:41]} 40. Kf1 {[%clk 0:00:21]}  Qh1# {[%clk 0:00:40]} 0-1

[Event "December 5 Late 2023"]
[Site "https://www.chess.com"]
[Date "2023.12.05"]
[Round "4"]
[White "Mohammad, Fahim"]
[Black "Ventura Bolet, Maxim"]
[Result "0-1"]
[Board "136"]
[TimeControl "180+1"]
[WhiteFideId "10206248"]
[BlackFideId "22238824"]
[WhiteElo "2309"]
[BlackElo "2481"]
[WhiteTeam "FRA"]
[BlackTeam "ESP"]
[WhiteClock "0:00:59"]
[BlackClock "0:01:38"]

1. d4 {[%clk 0:03:00]}  Nf6 {[%clk 0:02:58]} 2. Nf3 {[%clk 0:02:59]}  g6 {[%clk 0:02:57]} 3. c4 {[%clk 0:03:00]}  d6 {[%clk 0:02:57]} 4. Nc3 {[%clk 0:03:00]}  Nbd7 {[%clk 0:02:57]} 5. e4 {[%clk 0:03:01]}  e5 {[%clk 0:02:57]} 6. Be2 {[%clk 0:03:01]}  Bg7 {[%clk 0:02:58]} 7. Be3 {[%clk 0:03:00]}  O-O {[%clk 0:02:58]} 8. d5 {[%clk 0:03:01]}  a5 {[%clk 0:02:56]} 9. h3 {[%clk 0:02:57]}  Nc5 {[%clk 0:02:54]} 10. Nd2 {[%clk 0:02:55]}  b6 {[%clk 0:02:48]} 11. b3 {[%clk 0:02:54]}  Ne8 {[%clk 0:02:46]} 12. a3 {[%clk 0:02:54]}  f5 {[%clk 0:02:39]} 13. f3 {[%clk 0:02:51]}  Bh6 {[%clk 0:02:28]} 14. Bf2 {[%clk 0:02:46]}  a4 {[%clk 0:02:01]} 15. Nxa4 {[%clk 0:01:59]}  b5 {[%clk 0:01:57]} 16. Nxc5 {[%clk 0:01:58]}  dxc5 {[%clk 0:01:53]} 17. Bxc5 {[%clk 0:01:51]}  Nd6 {[%clk 0:01:51]} 18. Qc2 {[%clk 0:01:17]}  bxc4 {[%clk 0:01:42]} 19. Nxc4 {[%clk 0:01:16]}  fxe4 {[%clk 0:01:39]} 20. Qxe4 {[%clk 0:00:59]}  Nxe4 {[%clk 0:01:38]} 0-1

[Event "December 5 Late 2023"]
[Site "https://www.chess.com"]
[Date "2023.12.05"]
[Round "4"]
[White "Skibbe, Willi"]
[Black "Novik, Maxim"]
[Result "1-0"]
[Board "138"]
[TimeControl "180+1"]
[WhiteFideId "4682190"]
[BlackFideId "4102924"]
[WhiteElo "2302"]
[BlackElo "2477"]
[WhiteTeam "GER"]
[BlackTeam "LTU"]
[WhiteClock "0:00:05"]
[BlackClock "0:00:00"]

1. d4 {[%clk 0:03:00]}  Nf6 {[%clk 0:02:57]} 2. c4 {[%clk 0:02:59]}  g6 {[%clk 0:02:57]} 3. Nc3 {[%clk 0:02:58]}  d5 {[%clk 0:02:57]} 4. Bf4 {[%clk 0:02:56]}  Bg7 {[%clk 0:02:57]} 5. e3 {[%clk 0:02:56]}  c5 {[%clk 0:02:58]} 6. dxc5 {[%clk 0:02:51]}  Qa5 {[%clk 0:02:57]} 7. Rc1 {[%clk 0:02:52]}  Ne4 {[%clk 0:02:56]} 8. Ne2 {[%clk 0:02:38]}  dxc4 {[%clk 0:02:47]} 9. Qd5 {[%clk 0:02:19]}  Nxc5 {[%clk 0:02:28]} 10. Qxc4 {[%clk 0:02:16]}  O-O {[%clk 0:02:26]} 11. Nd4 {[%clk 0:01:51]}  Ne6 {[%clk 0:02:14]} 12. Qb5 {[%clk 0:01:44]}  Qxb5 {[%clk 0:01:49]} 13. Ndxb5 {[%clk 0:01:44]}  Nxf4 {[%clk 0:01:47]} 14. Nc7 {[%clk 0:01:41]}  Ne6 {[%clk 0:01:39]} 15. Nxa8 {[%clk 0:01:39]}  Nc6 {[%clk 0:01:39]} 16. Bc4 {[%clk 0:01:36]}  Bd7 {[%clk 0:01:39]} 17. Bxe6 {[%clk 0:01:35]}  fxe6 {[%clk 0:01:34]} 18. Nc7 {[%clk 0:01:36]}  a6 {[%clk 0:01:35]} 19. Rd1 {[%clk 0:01:33]}  Ne5 {[%clk 0:00:53]} 20. f4 {[%clk 0:01:17]}  Rc8 {[%clk 0:00:52]} 21. Nxa6 {[%clk 0:01:12]}  bxa6 {[%clk 0:00:42]} 22. fxe5 {[%clk 0:01:11]}  Be8 {[%clk 0:00:42]} 23. O-O {[%clk 0:01:08]}  Bxe5 {[%clk 0:00:41]} 24. Rc1 {[%clk 0:01:09]}  Rb8 {[%clk 0:00:35]} 25. b3 {[%clk 0:01:08]}  Bc6 {[%clk 0:00:34]} 26. Ne2 {[%clk 0:01:02]}  Bd5 {[%clk 0:00:30]} 27. Nd4 {[%clk 0:01:01]}  Bg7 {[%clk 0:00:20]} 28. Nc2 {[%clk 0:01:00]}  a5 {[%clk 0:00:16]} 29. Nd4 {[%clk 0:00:57]}  Bh6 {[%clk 0:00:15]} 30. Kf2 {[%clk 0:00:55]}  a4 {[%clk 0:00:14]} 31. Ke2 {[%clk 0:00:44]}  e5 {[%clk 0:00:13]} 32. Nc6 {[%clk 0:00:43]}  Rb7 {[%clk 0:00:09]} 33. Rfd1 {[%clk 0:00:31]}  e6 {[%clk 0:00:08]} 34. e4 {[%clk 0:00:16]}  Bxe4 {[%clk 0:00:06]} 35. Rc4 {[%clk 0:00:13]}  Bd5 {[%clk 0:00:05]} 36. Nd8 {[%clk 0:00:09]}  Bxc4+ {[%clk 0:00:04]} 37. bxc4 {[%clk 0:00:09]}  Rb2+ {[%clk 0:00:04]} 38. Kf3 {[%clk 0:00:09]}  Rxa2 {[%clk 0:00:05]} 39. Nxe6 {[%clk 0:00:09]}  a3 {[%clk 0:00:05]} 40. Rd3 {[%clk 0:00:08]}  Ra1 {[%clk 0:00:04]} 41. Rd8+ {[%clk 0:00:06]}  Kf7 {[%clk 0:00:04]} 42. Ra8 {[%clk 0:00:07]}  Bc1 {[%clk 0:00:03]} 43. Nd8+ {[%clk 0:00:06]}  Kf6 {[%clk 0:00:03]} 44. Nc6 {[%clk 0:00:07]}  Bb2 {[%clk 0:00:03]} 45. Ra6 {[%clk 0:00:06]}  Kf5 {[%clk 0:00:01]} 46. g4+ {[%clk 0:00:07]}  Kg5 {[%clk 0:00:01]} 47. Ne7 {[%clk 0:00:05]}  a2 {[%clk 0:00:00]} 48. Kg2 {[%clk 0:00:05]} 1-0

[Event "December 5 Late 2023"]
[Site "https://www.chess.com"]
[Date "2023.12.05"]
[Round "4"]
[White "Ozen, Metehan"]
[Black "Dong, Kyle Qiyu"]
[Result "1/2-1/2"]
[Board "140"]
[TimeControl "180+1"]
[WhiteFideId "34596054"]
[BlackFideId "30977380"]
[WhiteElo "2474"]
[BlackElo "2267"]
[WhiteTeam "TUR"]
[BlackTeam "USA"]
[WhiteClock "0:00:38"]
[BlackClock "0:00:27"]

1. c4 {[%clk 0:02:58]}  c5 {[%clk 0:02:58]} 2. Nc3 {[%clk 0:02:58]}  Nc6 {[%clk 0:02:58]} 3. g3 {[%clk 0:02:58]}  g6 {[%clk 0:02:58]} 4. Bg2 {[%clk 0:02:58]}  Bg7 {[%clk 0:02:58]} 5. d3 {[%clk 0:02:58]}  e5 {[%clk 0:02:56]} 6. Qd2 {[%clk 0:02:56]}  Nge7 {[%clk 0:02:56]} 7. b3 {[%clk 0:02:56]}  d6 {[%clk 0:02:53]} 8. Bb2 {[%clk 0:02:52]}  Be6 {[%clk 0:02:51]} 9. e3 {[%clk 0:02:49]}  d5 {[%clk 0:02:46]} 10. Nge2 {[%clk 0:02:48]}  O-O {[%clk 0:02:44]} 11. O-O {[%clk 0:02:45]}  dxc4 {[%clk 0:02:35]} 12. bxc4 {[%clk 0:02:40]}  Bxc4 {[%clk 0:02:34]} 13. Rfd1 {[%clk 0:02:38]}  Be6 {[%clk 0:02:31]} 14. Ne4 {[%clk 0:02:25]}  b6 {[%clk 0:02:27]} 15. f4 {[%clk 0:02:22]}  Rc8 {[%clk 0:02:19]} 16. Rf1 {[%clk 0:02:13]}  f5 {[%clk 0:02:06]} 17. Ng5 {[%clk 0:02:03]}  Bd5 {[%clk 0:02:04]} 18. fxe5 {[%clk 0:01:55]}  Nxe5 {[%clk 0:01:59]} 19. Nf4 {[%clk 0:01:52]}  Bxg2 {[%clk 0:01:45]} 20. Qxg2 {[%clk 0:01:53]}  Qd6 {[%clk 0:01:19]} 21. Nge6 {[%clk 0:01:48]}  Bf6 {[%clk 0:01:13]} 22. Nxf8 {[%clk 0:01:46]}  Rxf8 {[%clk 0:01:12]} 23. Rad1 {[%clk 0:01:47]}  Rd8 {[%clk 0:01:09]} 24. d4 {[%clk 0:01:44]}  Nc4 {[%clk 0:01:05]} 25. dxc5 {[%clk 0:01:38]}  Qxd1 {[%clk 0:01:00]} 26. Bxf6 {[%clk 0:01:35]}  Nxe3 {[%clk 0:00:55]} 27. Bxe7 {[%clk 0:01:02]}  Nxf1 {[%clk 0:00:38]} 28. Qxf1 {[%clk 0:00:51]}  Qd4+ {[%clk 0:00:38]} 29. Qf2 {[%clk 0:00:48]}  Qd1+ {[%clk 0:00:35]} 30. Qf1 {[%clk 0:00:38]}  Qd4+ {[%clk 0:00:28]} 31. Qf2 {[%clk 0:00:37]}  Qd1+ {[%clk 0:00:27]} 32. Qf1 {[%clk 0:00:38]} 1/2-1/2

[Event "December 5 Late 2023"]
[Site "https://www.chess.com"]
[Date "2023.12.05"]
[Round "4"]
[White "Coca, Cristi-Iulian"]
[Black "Golubenko, Valentina"]
[Result "1-0"]
[Board "141"]
[TimeControl "180+1"]
[WhiteFideId "1237004"]
[BlackFideId "4501993"]
[WhiteElo "2472"]
[BlackElo "2233"]
[WhiteTeam "ROU"]
[BlackTeam "CRO"]
[WhiteClock "0:00:44"]
[BlackClock "0:00:01"]

1. e4 {[%clk 0:02:55]}  e6 {[%clk 0:02:57]} 2. d4 {[%clk 0:02:55]}  d5 {[%clk 0:02:54]} 3. Nc3 {[%clk 0:02:56]}  Nf6 {[%clk 0:02:32]} 4. exd5 {[%clk 0:02:56]}  exd5 {[%clk 0:02:31]} 5. Bd3 {[%clk 0:02:56]}  Bd6 {[%clk 0:02:30]} 6. Nf3 {[%clk 0:02:57]}  O-O {[%clk 0:02:30]} 7. O-O {[%clk 0:02:57]}  c5 {[%clk 0:02:29]} 8. Bg5 {[%clk 0:02:57]}  Be6 {[%clk 0:02:18]} 9. dxc5 {[%clk 0:02:49]}  Bxc5 {[%clk 0:02:14]} 10. Ne2 {[%clk 0:02:49]}  Nc6 {[%clk 0:02:11]} 11. c3 {[%clk 0:02:48]}  h6 {[%clk 0:02:07]} 12. Bh4 {[%clk 0:02:48]}  Bg4 {[%clk 0:02:02]} 13. Nfd4 {[%clk 0:02:21]}  Nxd4 {[%clk 0:01:49]} 14. cxd4 {[%clk 0:02:20]}  Bxd4 {[%clk 0:01:46]} 15. h3 {[%clk 0:02:09]}  Bxe2 {[%clk 0:01:43]} 16. Qxe2 {[%clk 0:02:10]}  Qb6 {[%clk 0:01:27]} 17. Rad1 {[%clk 0:02:06]}  Qxb2 {[%clk 0:01:21]} 18. Qf3 {[%clk 0:02:06]}  b6 {[%clk 0:00:46]} 19. Qf5 {[%clk 0:01:52]}  g6 {[%clk 0:00:41]} 20. Qf4 {[%clk 0:01:52]}  Kg7 {[%clk 0:00:35]} 21. Bxg6 {[%clk 0:01:48]}  fxg6 {[%clk 0:00:24]} 22. Rxd4 {[%clk 0:01:45]}  Rae8 {[%clk 0:00:20]} 23. Rfd1 {[%clk 0:01:40]}  g5 {[%clk 0:00:18]} 24. Qg3 {[%clk 0:01:24]}  Ne4 {[%clk 0:00:15]} 25. Qg4 {[%clk 0:01:09]}  Nxf2 {[%clk 0:00:14]} 26. Bxf2 {[%clk 0:01:09]}  Qxf2+ {[%clk 0:00:13]} 27. Kh1 {[%clk 0:01:09]}  Qf5 {[%clk 0:00:13]} 28. Qg3 {[%clk 0:01:08]}  Re5 {[%clk 0:00:11]} 29. Qc3 {[%clk 0:01:06]}  Rfe8 {[%clk 0:00:11]} 30. Rxd5 {[%clk 0:01:06]}  Kg6 {[%clk 0:00:10]} 31. Rd6+ {[%clk 0:01:05]}  R8e6 {[%clk 0:00:09]} 32. Rd8 {[%clk 0:01:03]}  Qf4 {[%clk 0:00:07]} 33. Qc2+ {[%clk 0:01:01]}  Qf5 {[%clk 0:00:07]} 34. Qc3 {[%clk 0:01:00]}  Qf4 {[%clk 0:00:07]} 35. Rg1 {[%clk 0:00:56]}  Qf5 {[%clk 0:00:05]} 36. Rg8+ {[%clk 0:00:53]}  Kf7 {[%clk 0:00:05]} 37. Qc8 {[%clk 0:00:53]}  Re8 {[%clk 0:00:05]} 38. Qc4+ {[%clk 0:00:52]}  Qe6 {[%clk 0:00:04]} 39. Rxe8 {[%clk 0:00:49]}  Kxe8 {[%clk 0:00:04]} 40. Qa4+ {[%clk 0:00:47]}  Ke7 {[%clk 0:00:04]} 41. Qxa7+ {[%clk 0:00:47]}  Kf6 {[%clk 0:00:04]} 42. Qa8 {[%clk 0:00:43]}  Kg6 {[%clk 0:00:05]} 43. Qf3 {[%clk 0:00:42]}  Re1 {[%clk 0:00:04]} 44. Qd3+ {[%clk 0:00:42]}  Kg7 {[%clk 0:00:04]} 45. Qc3+ {[%clk 0:00:43]}  Qf6 {[%clk 0:00:04]} 46. Qxe1 {[%clk 0:00:44]}  Kg6 {[%clk 0:00:01]} 47. Qe4+ {[%clk 0:00:44]} 1-0

[Event "December 5 Late 2023"]
[Site "https://www.chess.com"]
[Date "2023.12.05"]
[Round "4"]
[White "Keller, Peter"]
[Black "Mizzi, Jack"]
[Result "1-0"]
[Board "143"]
[TimeControl "180+1"]
[WhiteFideId "1272105"]
[BlackFideId "5602521"]
[WhiteElo "2179"]
[BlackElo "2464"]
[WhiteTeam "GER"]
[BlackTeam "MLT"]
[WhiteClock "0:00:12"]
[BlackClock "0:00:00"]

1. d4 {[%clk 0:03:00]}  Nf6 {[%clk 0:02:59]} 2. Bf4 {[%clk 0:03:00]}  g6 {[%clk 0:02:56]} 3. e3 {[%clk 0:03:00]}  Bg7 {[%clk 0:02:57]} 4. h3 {[%clk 0:03:00]}  O-O {[%clk 0:02:57]} 5. Nf3 {[%clk 0:03:01]}  d6 {[%clk 0:02:58]} 6. Bh2 {[%clk 0:03:01]}  Nbd7 {[%clk 0:02:58]} 7. Be2 {[%clk 0:03:02]}  Re8 {[%clk 0:02:58]} 8. O-O {[%clk 0:03:02]}  e5 {[%clk 0:02:59]} 9. c3 {[%clk 0:03:02]}  b6 {[%clk 0:02:57]} 10. Nbd2 {[%clk 0:03:00]}  Bb7 {[%clk 0:02:57]} 11. a4 {[%clk 0:02:57]}  c5 {[%clk 0:02:57]} 12. Nc4 {[%clk 0:02:42]}  Ne4 {[%clk 0:02:39]} 13. Nfd2 {[%clk 0:02:11]}  exd4 {[%clk 0:02:17]} 14. Nxe4 {[%clk 0:02:08]}  Bxe4 {[%clk 0:02:08]} 15. Nxd6 {[%clk 0:02:07]}  dxc3 {[%clk 0:02:08]} 16. Nxe8 {[%clk 0:02:05]}  Qxe8 {[%clk 0:01:38]} 17. bxc3 {[%clk 0:02:03]}  Bxc3 {[%clk 0:01:39]} 18. Rc1 {[%clk 0:01:58]}  Be5 {[%clk 0:01:33]} 19. Bb5 {[%clk 0:01:53]}  Rd8 {[%clk 0:01:28]} 20. Qd2 {[%clk 0:01:26]}  Bxh2+ {[%clk 0:01:19]} 21. Kxh2 {[%clk 0:01:27]}  Qe5+ {[%clk 0:01:19]} 22. f4 {[%clk 0:01:27]}  Qe7 {[%clk 0:01:13]} 23. Rcd1 {[%clk 0:01:24]}  a6 {[%clk 0:00:39]} 24. Bxd7 {[%clk 0:01:10]}  Bf5 {[%clk 0:00:39]} 25. Qd6 {[%clk 0:00:53]}  Rxd7 {[%clk 0:00:32]} 26. Qxb6 {[%clk 0:00:38]}  Rxd1 {[%clk 0:00:30]} 27. Rxd1 {[%clk 0:00:39]}  Qxe3 {[%clk 0:00:29]} 28. Qb8+ {[%clk 0:00:36]}  Kg7 {[%clk 0:00:28]} 29. Qe5+ {[%clk 0:00:20]}  Qxe5 {[%clk 0:00:27]} 30. fxe5 {[%clk 0:00:21]}  c4 {[%clk 0:00:28]} 31. Rd6 {[%clk 0:00:19]}  a5 {[%clk 0:00:18]} 32. Rc6 {[%clk 0:00:19]}  Bd3 {[%clk 0:00:17]} 33. Kg3 {[%clk 0:00:20]}  Kf8 {[%clk 0:00:10]} 34. Kf4 {[%clk 0:00:19]}  Ke7 {[%clk 0:00:10]} 35. Ke3 {[%clk 0:00:18]}  Bf1 {[%clk 0:00:09]} 36. g3 {[%clk 0:00:18]}  Kd7 {[%clk 0:00:07]} 37. Rc5 {[%clk 0:00:17]}  Ke6 {[%clk 0:00:03]} 38. h4 {[%clk 0:00:17]}  h5 {[%clk 0:00:03]} 39. Kd4 {[%clk 0:00:17]}  Kf5 {[%clk 0:00:02]} 40. Ke3 {[%clk 0:00:13]}  Kg4 {[%clk 0:00:03]} 41. Kf2 {[%clk 0:00:13]}  Bd3 {[%clk 0:00:02]} 42. Rxa5 {[%clk 0:00:13]}  Kf5 {[%clk 0:00:02]} 43. Rc5 {[%clk 0:00:13]}  Ke4 {[%clk 0:00:02]} 44. a5 {[%clk 0:00:13]}  Kd4 {[%clk 0:00:03]} 45. Rc7 {[%clk 0:00:11]}  c3 {[%clk 0:00:03]} 46. a6 {[%clk 0:00:08]}  Bxa6 {[%clk 0:00:02]} 47. Rxf7 {[%clk 0:00:09]}  c2 {[%clk 0:00:01]} 48. Rd7+ {[%clk 0:00:08]}  Kc5 {[%clk 0:00:01]} 49. Rc7+ {[%clk 0:00:09]}  Kb4 {[%clk 0:00:01]} 50. Rxc2 {[%clk 0:00:09]}  Bd3 {[%clk 0:00:02]} 51. Rd2 {[%clk 0:00:09]}  Kc3 {[%clk 0:00:02]} 52. Ke3 {[%clk 0:00:10]}  Bf5 {[%clk 0:00:02]} 53. Rd6 {[%clk 0:00:10]}  Kc4 {[%clk 0:00:03]} 54. Kf4 {[%clk 0:00:10]}  Kc5 {[%clk 0:00:02]} 55. Kg5 {[%clk 0:00:11]}  Be4 {[%clk 0:00:02]} 56. Kf6 {[%clk 0:00:11]}  Bc2 {[%clk 0:00:01]} 57. Rd2 {[%clk 0:00:12]}  Be4 {[%clk 0:00:01]} 58. e6 {[%clk 0:00:12]}  Kc6 {[%clk 0:00:00]} 59. e7 {[%clk 0:00:12]} 1-0

[Event "December 5 Late 2023"]
[Site "https://www.chess.com"]
[Date "2023.12.05"]
[Round "4"]
[White "Sroczynski, Maciej"]
[Black "Estevez Polanco, Leonardo Rafael"]
[Result "1-0"]
[Board "144"]
[TimeControl "180+1"]
[WhiteFideId "1121472"]
[BlackFideId "6402798"]
[WhiteElo "2464"]
[BlackElo "2151"]
[WhiteTeam "POL"]
[BlackTeam "DOM"]
[WhiteClock "0:00:30"]
[BlackClock "0:00:05"]

1. Nf3 {[%clk 0:03:00]}  Nf6 {[%clk 0:02:58]} 2. g3 {[%clk 0:02:59]}  e6 {[%clk 0:02:57]} 3. Bg2 {[%clk 0:02:58]}  Be7 {[%clk 0:02:58]} 4. d3 {[%clk 0:02:58]}  O-O {[%clk 0:02:58]} 5. e4 {[%clk 0:02:58]}  d6 {[%clk 0:02:58]} 6. O-O {[%clk 0:02:56]}  e5 {[%clk 0:02:59]} 7. Nc3 {[%clk 0:02:52]}  h6 {[%clk 0:02:57]} 8. d4 {[%clk 0:02:52]}  Nbd7 {[%clk 0:02:55]} 9. h3 {[%clk 0:02:51]}  c6 {[%clk 0:02:55]} 10. a4 {[%clk 0:02:51]}  Nh7 {[%clk 0:02:55]} 11. Be3 {[%clk 0:02:50]}  Bf6 {[%clk 0:02:55]} 12. Re1 {[%clk 0:02:48]}  Ng5 {[%clk 0:02:53]} 13. Nh2 {[%clk 0:02:22]}  exd4 {[%clk 0:02:50]} 14. Bxd4 {[%clk 0:02:22]}  Bxd4 {[%clk 0:02:39]} 15. Qxd4 {[%clk 0:02:22]}  Ne5 {[%clk 0:02:33]} 16. f4 {[%clk 0:02:20]}  Nxh3+ {[%clk 0:02:17]} 17. Bxh3 {[%clk 0:02:16]}  c5 {[%clk 0:01:55]} 18. Qf2 {[%clk 0:02:07]}  Bxh3 {[%clk 0:01:51]} 19. fxe5 {[%clk 0:02:07]}  dxe5 {[%clk 0:01:52]} 20. g4 {[%clk 0:01:57]}  h5 {[%clk 0:01:41]} 21. gxh5 {[%clk 0:01:54]}  Qg5+ {[%clk 0:01:39]} 22. Kh1 {[%clk 0:01:51]}  Qxh5 {[%clk 0:01:39]} 23. Rg1 {[%clk 0:01:42]}  Be6 {[%clk 0:01:35]} 24. Qg3 {[%clk 0:01:32]}  g6 {[%clk 0:01:29]} 25. Rad1 {[%clk 0:01:28]}  Rfd8 {[%clk 0:01:27]} 26. Nd5 {[%clk 0:01:23]}  Bxd5 {[%clk 0:01:27]} 27. exd5 {[%clk 0:01:23]}  Rd6 {[%clk 0:01:21]} 28. c4 {[%clk 0:01:21]}  a6 {[%clk 0:01:12]} 29. Rde1 {[%clk 0:01:19]}  Re8 {[%clk 0:01:11]} 30. a5 {[%clk 0:01:14]}  Rdd8 {[%clk 0:01:07]} 31. Re3 {[%clk 0:01:11]}  Kg7 {[%clk 0:01:06]} 32. Rge1 {[%clk 0:01:09]}  f6 {[%clk 0:01:04]} 33. Kg2 {[%clk 0:00:53]}  Rh8 {[%clk 0:01:02]} 34. Ng4 {[%clk 0:00:53]}  Rdf8 {[%clk 0:00:46]} 35. Nxe5 {[%clk 0:00:49]}  fxe5 {[%clk 0:00:37]} 36. Rxe5 {[%clk 0:00:49]}  Rf5 {[%clk 0:00:26]} 37. Re7+ {[%clk 0:00:49]}  Rf7 {[%clk 0:00:15]} 38. Rxf7+ {[%clk 0:00:43]}  Kxf7 {[%clk 0:00:16]} 39. Qc7+ {[%clk 0:00:42]}  Kf6 {[%clk 0:00:14]} 40. Qe7+ {[%clk 0:00:42]}  Kf5 {[%clk 0:00:13]} 41. Rf1+ {[%clk 0:00:41]}  Kg4 {[%clk 0:00:11]} 42. Qe4+ {[%clk 0:00:38]}  Kg5 {[%clk 0:00:09]} 43. Qe3+ {[%clk 0:00:38]}  Kg4 {[%clk 0:00:06]} 44. Rf4+ {[%clk 0:00:38]}  Kg5 {[%clk 0:00:04]} 45. Re4+ {[%clk 0:00:32]}  Kf6 {[%clk 0:00:03]} 46. Re6+ {[%clk 0:00:30]}  Kg7 {[%clk 0:00:04]} 47. Re7+ {[%clk 0:00:30]}  Kg8 {[%clk 0:00:05]} 48. Qe6+ {[%clk 0:00:29]}  Kf8 {[%clk 0:00:05]} 49. Qf7# {[%clk 0:00:30]} 1-0

[Event "December 5 Late 2023"]
[Site "https://www.chess.com"]
[Date "2023.12.05"]
[Round "4"]
[White "Novikova, Margarita"]
[Black "Shton, Roman"]
[Result "0-1"]
[Board "145"]
[TimeControl "180+1"]
[WhiteFideId "14109689"]
[BlackFideId "14137461"]
[WhiteElo "2129"]
[BlackElo "2458"]
[WhiteTeam "GER"]
[BlackTeam "UKR"]
[WhiteClock "0:00:00"]
[BlackClock "0:00:09"]

1. d4 {[%clk 0:02:59]}  Nf6 {[%clk 0:02:57]} 2. Bf4 {[%clk 0:02:59]}  c5 {[%clk 0:02:57]} 3. c3 {[%clk 0:02:58]}  Nd5 {[%clk 0:02:57]} 4. Bg3 {[%clk 0:02:57]}  Qb6 {[%clk 0:02:56]} 5. Qb3 {[%clk 0:02:56]}  Qxb3 {[%clk 0:02:51]} 6. axb3 {[%clk 0:02:57]}  cxd4 {[%clk 0:02:52]} 7. cxd4 {[%clk 0:02:52]}  Nc6 {[%clk 0:02:49]} 8. e3 {[%clk 0:02:45]}  d6 {[%clk 0:02:44]} 9. Nc3 {[%clk 0:02:43]}  Ndb4 {[%clk 0:02:42]} 10. O-O-O {[%clk 0:02:38]}  d5 {[%clk 0:02:34]} 11. Nf3 {[%clk 0:02:34]}  Bf5 {[%clk 0:02:33]} 12. Ne5 {[%clk 0:02:22]}  a6 {[%clk 0:02:19]} 13. f3 {[%clk 0:02:20]}  f6 {[%clk 0:02:03]} 14. Nd3 {[%clk 0:02:15]}  e6 {[%clk 0:01:44]} 15. Bf2 {[%clk 0:02:08]}  Rc8 {[%clk 0:01:34]} 16. e4 {[%clk 0:01:59]}  dxe4 {[%clk 0:01:34]} 17. fxe4 {[%clk 0:01:59]}  Bg4 {[%clk 0:01:34]} 18. Re1 {[%clk 0:01:48]}  Bh5 {[%clk 0:01:17]} 19. d5 {[%clk 0:01:41]}  Nxd3+ {[%clk 0:01:13]} 20. Bxd3 {[%clk 0:01:41]}  Nb4 {[%clk 0:01:14]} 21. Bb1 {[%clk 0:01:20]}  Kf7 {[%clk 0:01:14]} 22. Kd2 {[%clk 0:01:11]}  Bd6 {[%clk 0:01:10]} 23. Be3 {[%clk 0:01:04]}  Be5 {[%clk 0:01:09]} 24. dxe6+ {[%clk 0:00:53]}  Kxe6 {[%clk 0:01:10]} 25. Nd5 {[%clk 0:00:45]}  Rhd8 {[%clk 0:01:04]} 26. Bb6 {[%clk 0:00:42]}  Nxd5 {[%clk 0:00:55]} 27. Bxd8 {[%clk 0:00:39]}  Bf4+ {[%clk 0:00:56]} 28. Kd3 {[%clk 0:00:30]}  Nb4+ {[%clk 0:00:55]} 29. Kd4 {[%clk 0:00:28]}  Rxd8+ {[%clk 0:00:42]} 30. Kc5 {[%clk 0:00:27]}  Nd3+ {[%clk 0:00:36]} 31. Bxd3 {[%clk 0:00:26]}  Rxd3 {[%clk 0:00:37]} 32. b4 {[%clk 0:00:25]}  Be3+ {[%clk 0:00:35]} 33. Kc4 {[%clk 0:00:23]}  Rd4+ {[%clk 0:00:34]} 34. Kc3 {[%clk 0:00:19]}  Rxe4 {[%clk 0:00:09]} 35. h3 {[%clk 0:00:17]}  Bd4+ {[%clk 0:00:07]} 36. Kc4 {[%clk 0:00:17]}  Rxe1 {[%clk 0:00:07]} 37. Rxe1+ {[%clk 0:00:18]}  Be5 {[%clk 0:00:08]} 38. g4 {[%clk 0:00:17]}  Bf7 {[%clk 0:00:08]} 39. Kc5 {[%clk 0:00:17]}  Kd7 {[%clk 0:00:09]} 40. Kb6 {[%clk 0:00:17]}  Kc8 {[%clk 0:00:09]} 41. Rc1+ {[%clk 0:00:16]}  Kd7 {[%clk 0:00:09]} 42. Kxb7 {[%clk 0:00:14]}  Bxb2 {[%clk 0:00:06]} 43. Rc7+ {[%clk 0:00:13]}  Ke6 {[%clk 0:00:06]} 44. Kxa6 {[%clk 0:00:13]}  Bg6 {[%clk 0:00:06]} 45. Rxg7 {[%clk 0:00:12]}  Bd3+ {[%clk 0:00:06]} 46. b5 {[%clk 0:00:11]}  f5 {[%clk 0:00:06]} 47. gxf5+ {[%clk 0:00:10]}  Bxf5 {[%clk 0:00:07]} 48. Rg2 {[%clk 0:00:09]}  Bc3 {[%clk 0:00:06]} 49. Re2+ {[%clk 0:00:09]}  Kd5 {[%clk 0:00:06]} 50. b6 {[%clk 0:00:07]}  Bd3+ {[%clk 0:00:07]} 51. Ka7 {[%clk 0:00:07]}  Bxe2 {[%clk 0:00:07]} 52. b7 {[%clk 0:00:08]}  Be5 {[%clk 0:00:08]} 53. b8=Q {[%clk 0:00:07]}  Bxb8+ {[%clk 0:00:08]} 54. Kxb8 {[%clk 0:00:07]}  h5 {[%clk 0:00:09]} 55. Kc7 {[%clk 0:00:00]}  h4 {[%clk 0:00:09]} 0-1